fUSD/lending_fUSD_20240519
["ID","MTS","AMOUNT","RATE_DAILY","PERIOD"]
[327521995,1716153952422,-717.0,0.00049589,120]
[327521996,1716153952446,-2231.56112328,0.00049589,120]
[327521997,1716153952470,-1017.23238661,0.00049589,120]
[327521998,1716153952495,-1020.72004834,0.00049589,120]
[327521999,1716153952519,-41296.80943502,0.00049589,120]
[327522000,1716153956863,-988.0,0.00049315,120]
[327522001,1716153956888,-163.0,0.000495,120]
[327522002,1716153956913,-798849.0,0.00049589,120]
[327522003,1716153962089,-800000.0,0.00049589,120]
[327522004,1716154053324,419.7,0.00024329,30]
[327522005,1716154091729,-6677.01001125,0.0002442,28]
[327522006,1716154091761,-419.7,0.00027318,30]
[327522007,1716154091792,-419.7,0.00030306,30]
[327522008,1716154091827,-419.7,0.00033295,30]
[327522009,1716154091857,-50000.0,0.00035,15]
[327522010,1716154091882,-50000.0,0.00035,25]
[327522011,1716154091908,-988.0,0.00035616,16]
[327522012,1716154091933,-50000.0,0.00036,16]
[327522013,1716154091964,-50000.0,0.00036,26]
[327522014,1716154092006,-419.7,0.00036284,30]
[327522015,1716154092048,-988.0,0.00036986,18]
[327522016,1716154092090,-50000.0,0.00037,17]
[327522017,1716154092124,-50000.0,0.00037,27]
[327522018,1716154092162,-50000.0,0.00038,18]
[327522019,1716154092192,-50000.0,0.00038,28]
[327522020,1716154092227,-988.0,0.00038356,20]
[327522021,1716154092267,-50000.0,0.00039,19]
[327522022,1716154092296,-50000.0,0.00039,29]
[327522023,1716154092329,-419.7,0.00039273,30]
[327522024,1716154092365,-988.0,0.00039726,22]
[327522025,1716154092396,-50000.0,0.0004,20]
[327522026,1716154092425,-2437272.48998875,0.0004,15]
[327522627,1716154112782,190.72,0.00012207,2]
[327523185,1716154127188,452.36,0.00012207,2]
[327523788,1716154168073,328.0,0.00012209,2]
[327523794,1716154198954,666.83,0.00012273,2]
[327523796,1716154203756,201.31085316,0.00012212,2]
[327523798,1716154209604,250.0,0.00012176,2]
[327523814,1716154231471,-155.0,0.00012542,2]
[327523815,1716154231480,-789.56040975,0.00012543,2]
[327523816,1716154231489,-581.51472241,0.00012545,2]
[327523817,1716154231498,-256.864,0.00012549,2]
[327523818,1716154231507,-203.21086784,0.00012549,2]
[327523819,1716154231518,-710.00013216,0.00012549,2]
[327523820,1716154231528,-499.99,0.00012639,2]
[327523821,1716154231537,-211.19796497,0.00012639,2]
[327523822,1716154231559,-615.56764647,0.00012639,2]
[327523823,1716154231587,-249.56579223,0.00012639,2]
[327523824,1716154231596,-93914.55,0.00012649,2]
[327523825,1716154231605,-869.42,0.000127,2]
[327523826,1716154231614,-869.42,0.000127,2]
[327523827,1716154231623,-868.76,0.000127,2]
[327523828,1716154231632,-695.3295,0.000127,2]
[327523829,1716154231641,-2500.0,0.000127,2]
[327523830,1716154231650,-2867.7659,0.00012796,2]
[327523831,1716154231659,-3336.3254,0.00012796,2]
[327523833,1716154231668,-3963.6683,0.00012796,2]
[327523834,1716154231677,-21182.93316137,0.00012798,2]
[327523835,1716154231686,-4794.9166,0.000128,2]
[327523836,1716154231695,-88544.8535,0.000128,2]
[327523837,1716154231705,-497.1216,0.000128,2]
[327523838,1716154231714,-78060.7556,0.00012896,2]
[327523840,1716154231723,-19159.7649,0.00012896,2]
[327523842,1716154231732,-9999.99,0.00012896,2]
[327523844,1716154231741,-200.0,0.00012896,2]
[327523846,1716154231751,-1000.0,0.00012896,2]
[327523847,1716154231761,-500.0,0.00012896,2]
[327523848,1716154231770,-9678.03,0.00012899,2]
[327523849,1716154231779,-198.223205,0.00012899,2]
[327523850,1716154231788,-52016.90045866,0.000129,2]
[327523851,1716154231797,-223.22835296,0.000129,2]
[327523852,1716154231806,-6261.8124256,0.000129,2]
[327523853,1716154231815,-6261.8124256,0.000129,2]
[327523854,1716154231824,-6261.8124256,0.000129,2]
[327523855,1716154231833,-6261.8124256,0.000129,2]
[327523856,1716154231842,-6261.8124256,0.000129,2]
[327523857,1716154231851,-6261.8124256,0.000129,2]
[327523858,1716154231865,-6261.8124256,0.000129,2]
[327523859,1716154231874,-6261.8124256,0.000129,2]
[327523860,1716154231883,-150.20476875,0.00012989,2]
[327523861,1716154231892,-10932.59783418,0.00012997,2]
[327523862,1716154231902,-666.95322911,0.00012997,2]
[327523863,1716154231914,-544.58289917,0.00012997,2]
[327523864,1716154231923,-2826.00965295,0.00012997,2]
[327523865,1716154231934,-199.59753316,0.00012997,2]
[327523866,1716154231943,-401.78768778,0.00012997,2]
[327523867,1716154231952,-1421.18809713,0.00012997,2]
[327523868,1716154231961,-375.60485606,0.00012997,2]
[327523869,1716154231970,-217.12917375,0.00012997,2]
[327523870,1716154231981,-987.95670752,0.00012997,2]
[327523871,1716154231990,-2152.73660839,0.00012997,2]
[327523872,1716154232001,-358.96666283,0.00012998,2]
[327523873,1716154232010,-239.04218618,0.00012998,2]
[327523874,1716154232019,-306.93217468,0.00012998,2]
[327523875,1716154232027,-206.27460698,0.00012998,2]
[327523876,1716154232037,-155.32500028,0.00012998,2]
[327523877,1716154232048,-155.0,0.00012998,2]
[327523878,1716154232057,-212.9813536,0.00012998,2]
[327523879,1716154232067,-785.04469954,0.00012999,3]
[327523880,1716154232080,-366.91607849,0.00012999,3]
[327523881,1716154232090,-65664.88824375,0.00012999,2]
[327523882,1716154232101,-346.53616094,0.00012999,2]
[327523883,1716154232112,-276.94535504,0.00012999,2]
[327523884,1716154232127,-10316.68900993,0.00012999,2]
[327523888,1716154237511,-155.0,0.00012541,2]
[327523889,1716154237521,-37615.28118137,0.00012999,2]
[327523890,1716154237533,-291.044568,0.00012999,2]
[327523891,1716154237546,-456.73725,0.00012999,2]
[327523892,1716154237672,-671.65301558,0.00012999,2]
[327523893,1716154237684,-388.33639583,0.00012999,2]
[327523894,1716154237696,-7705.52086911,0.00012999,2]
[327523895,1716154237708,-18222.9646,0.00012999,2]
[327523906,1716154239747,-2578.79395893,0.00012999,2]
[327523907,1716154239761,-6619.49999999,0.00012999,2]
[327523908,1716154240048,-4639.752,0.00012999,2]
[327523948,1716154242723,-1483.51991344,0.00012999,2]
[327523954,1716154254408,751.01567283,0.00011697,2]
[327523955,1716154283462,155.0,0.00012997,60]
[327523975,1716154476127,756.93,9.986e-05,2]
[327523976,1716154476365,756.93,0.0001225,2]
[327523981,1716154518853,1704.95,0.00011904,2]
[327523985,1716154541875,1543.45175999,0.00012399,2]
[327523986,1716154546837,1543.45175999,0.00012414,2]
[327523987,1716154551835,1543.45175999,0.00012429,2]
[327523988,1716154553252,1066.98,0.00024329,30]
[327524000,1716154664863,250.0,0.00011889,2]
[327524003,1716154692523,606.88,0.00011889,2]
[327524004,1716154741478,737.6,0.00011889,2]
[327524012,1716154899209,154.03,0.00011878,2]
[327524013,1716154899465,154.03,0.00011885,2]
[327524014,1716154899884,154.03,0.00011892,2]
[327524015,1716154900251,154.03,0.000119,2]
[327524016,1716154900334,154.03,0.00011907,2]
[327524017,1716154900580,154.03,0.00011915,2]
[327524018,1716154900740,154.03,0.00011922,2]
[327524019,1716154900973,154.03,0.00011929,2]
[327524020,1716154901210,154.03,0.00011937,2]
[327524021,1716154917210,152.37,0.0001213,2]
[327524022,1716154917440,152.37,0.00012165,2]
[327524023,1716154918798,152.37,0.000122,2]
[327524024,1716154919181,152.37,0.00012235,2]
[327524025,1716154919237,152.37,0.0001227,2]
[327524026,1716154919429,152.37,0.00012305,2]
[327524027,1716154919638,152.37,0.00012341,2]
[327524028,1716154919889,152.37,0.00012376,2]
[327524029,1716154920100,152.37,0.00012411,2]
[327524030,1716154920356,152.37,0.00012446,2]
[327524031,1716154934495,2504.8412143,0.000124,2]
[327524035,1716154980907,728.18,9.971e-05,2]
[327524036,1716154981133,728.18,0.00012235,2]
[327524040,1716155040352,978.06,0.00024329,30]
[327524041,1716155100150,986.0,0.0003,120]
[327524044,1716155156694,404.25,0.00011903,2]
[327524048,1716155227609,250.0,0.00011878,2]
[327524050,1716155306948,187.38,0.00011878,2]
[327524051,1716155321875,163.61730037,0.00012381,2]
[327524052,1716155391629,1000.0,0.00011899,2]
[327524053,1716155395465,152.37,0.00012173,2]
[327524054,1716155395876,152.37,0.00012252,2]
[327524055,1716155396126,152.37,0.00012331,2]
[327524056,1716155396490,152.37,0.00012411,2]
[327524061,1716155413817,8204.72976724,0.0001238,2]
[327524084,1716155431756,-152.37,0.0001249,2]
[327524085,1716155431766,-99.98000002,0.00012569,2]
[327524086,1716155431778,-52.38999998,0.00012569,2]
[327524087,1716155431787,-150.0,0.00012575,2]
[327524088,1716155431797,-150.0,0.00012598,2]
[327524089,1716155431807,-150.0,0.00012598,2]
[327524090,1716155431816,-175.28558864,0.00012622,2]
[327524091,1716155431828,-591.13613138,0.00012622,2]
[327524092,1716155431839,-1100.0,0.00012622,2]
[327524093,1716155431889,-114.09827998,0.00012622,2]
[327524094,1716155431899,-152.37,0.00012649,2]
[327524095,1716155431909,-499.99,0.00012674,2]
[327524096,1716155431918,-1335.2156,0.000127,2]
[327524097,1716155431930,-1000.0,0.000127,2]
[327524098,1716155431946,-41.2070435,0.000127,2]
[327524099,1716155431966,-958.7929565,0.000127,2]
[327524100,1716155431978,-1000.0,0.000127,2]
[327524101,1716155431992,-152.37,0.00012728,2]
[327524102,1716155432005,-1000.0,0.00012799,2]
[327524103,1716155432019,-2026.36932864,0.00012799,2]
[327524104,1716155432037,-473.63067136,0.00012799,2]
[327524105,1716155432051,-88.80477402,0.000128,2]
[327524106,1716155432072,-911.19522598,0.000128,2]
[327524107,1716155432085,-152.37,0.00012807,2]
[327524108,1716155432098,-203.23203952,0.00012869,2]
[327524109,1716155432114,-79.65516707,0.00012869,2]
[327524110,1716155432128,-795.94411268,0.00012895,2]
[327524112,1716155432159,-204.05588732,0.00012895,2]
[327524114,1716155432170,-500.0,0.00012895,2]
[327524116,1716155432184,-500.0,0.00012896,2]
[327524118,1716155432197,-200.0,0.00012896,2]
[327524121,1716155432210,-196.63759485,0.00012896,2]
[327524124,1716155432228,-803.36240515,0.00012896,2]
[327524126,1716155432245,-1000.0,0.00012896,2]
[327524128,1716155432259,-500.0,0.00012896,2]
[327524131,1716155432274,-500.0,0.00012896,2]
[327524133,1716155432284,-378.83157048,0.00012898,2]
[327524135,1716155432295,-512.02675208,0.00012899,2]
[327524138,1716155432310,-87.90804792,0.00012899,2]
[327524140,1716155432322,-713.45749976,0.00012899,2]
[327524144,1716155432348,-995.2368998,0.00012899,2]
[327524146,1716155432362,-308.14008547,0.00012899,2]
[327524147,1716155432378,-2782.51002855,0.00012899,2]
[327524166,1716155438484,-611.56751101,0.00012899,2]
[327524168,1716155438498,-683.175201,0.00012899,2]
[327524170,1716155438509,-6201.6590483,0.00012899,2]
[327524172,1716155438621,-451.57864314,0.00012899,2]
[327524173,1716155438632,-524.18265939,0.00012899,2]
[327524174,1716155438644,-330.2694009,0.00012899,2]
[327524175,1716155438655,-1346.4643134,0.00012899,2]
[327524176,1716155438668,-70396.99999999,0.00012899,2]
[327524177,1716155438736,-2800.52171134,0.00012899,2]
[327524204,1716155440080,-156854.23699795,0.00012899,2]
[327524205,1716155440089,-163.61730037,0.00012899,2]
[327524206,1716155440098,-177.68151497,0.000129,2]
[327524207,1716155440108,-328.87973814,0.000129,2]
[327524208,1716155440118,-177.38452581,0.000129,2]
[327524209,1716155440127,-177.38452581,0.000129,2]
[327524210,1716155440136,-220.15257245,0.000129,2]
[327524211,1716155440145,-406.5408,0.00012959,2]
[327524212,1716155440155,-323.68964923,0.00012997,2]
[327524213,1716155440164,-803.4540425,0.00012998,2]
[327524214,1716155440174,-786.37685929,0.00012998,2]
[327524215,1716155440184,-3606.422,0.00012999,2]
[327524216,1716155440194,-189300.77867043,0.00012999,2]
[327524217,1716155440203,-208.03626817,0.00012999,2]
[327524218,1716155440213,-3347.67335675,0.00012999,2]
[327524219,1716155440222,-7819.2146,0.00012999,2]
[327524220,1716155440235,-333471.937141,0.00013,2]
[327524221,1716155442411,506.7,0.00010959,2]
[327524223,1716155442986,-612.612,0.00013,2]
[327524224,1716155443060,-385.0000001,0.00013,2]
[327524237,1716155443511,-289.62124792,0.00013,2]
[327524245,1716155445895,-561.62969865,0.00013,2]
[327524246,1716155445907,-764.7,0.00013,2]
[327524247,1716155446293,-3333.68330387,0.00013,2]
[327524248,1716155448690,751.01567283,0.00011699,2]
[327524249,1716155468286,663.22,0.00011958,2]
[327524250,1716155487669,19717.56505747,0.00011699,2]
[327524251,1716155540679,747.40205639,0.00011698,2]
[327524254,1716155571831,173.94,0.00010574,2]
[327524255,1716155592820,896.55,0.00024329,30]
[327524270,1716155944245,15932.91,0.0003,120]
[327524271,1716155948760,630.05,0.00010785,2]
[327524324,1716156061458,821.83,0.00024329,30]
[327524370,1716156119888,15880.0,0.0003,120]
[327524374,1716156130173,15880.0,0.0003,120]
[327524424,1716156157066,726.28,0.0001239,2]
[327524978,1716156409174,645.51,0.00010496,2]
[327525195,1716156511416,753.34,0.00024329,30]
[327525200,1716156611940,3005.0,0.00025,30]
[327525201,1716156621383,483.85,0.00012473,2]
[327525217,1716156632015,-496.346633,0.00012525,2]
[327525219,1716156632027,-730.35536255,0.00012525,2]
[327525228,1716156632100,-230.30846334,0.00012525,2]
[327525229,1716156632110,-250.0,0.00012526,2]
[327525230,1716156632121,-800.0,0.00012566,2]
[327525231,1716156632131,-200.0,0.00012746,2]
[327525232,1716156632141,-56.14777957,0.0001276,2]
[327525233,1716156632155,-589.36222043,0.0001276,2]
[327525235,1716156632165,-470.0505,0.000128,2]
[327525237,1716156632175,-27.29578798,0.000128,2]
[327525239,1716156632188,-183.29931202,0.000128,2]
[327525241,1716156632197,-373.9028,0.000128,2]
[327525243,1716156632207,-1564.91862066,0.00012837,2]
[327525244,1716156632216,-500.0,0.00012895,2]
[327525245,1716156632225,-200.0,0.00012896,2]
[327525246,1716156632235,-1000.0,0.00012896,2]
[327525247,1716156632244,-500.0,0.00012896,2]
[327525248,1716156632254,-347.93910065,0.00012899,2]
[327525249,1716156632264,-34209.19430072,0.000129,2]
[327525250,1716156632276,-387.99999996,0.000129,2]
[327525251,1716156632287,-6947.77168517,0.000129,2]
[327525252,1716156632333,-749.56,0.000129,2]
[327525253,1716156632344,-155100.16284915,0.000129,2]
[327525254,1716156632427,-17075.6912,0.000129,2]
[327525255,1716156632438,-21664.956,0.000129,2]
[327525256,1716156632449,-8864.663965,0.000129,2]
[327525257,1716156632459,-500.0,0.000129,2]
[327525258,1716156632468,-4611.956955,0.000129,2]
[327525259,1716156632480,-5388.043045,0.000129,2]
[327525260,1716156632490,-7500.0,0.000129,2]
[327525261,1716156632499,-1688.674435,0.000129,2]
[327525262,1716156632510,-5805.0163692,0.000129,2]
[327525263,1716156632519,-318.20444604,0.000129,2]
[327525264,1716156632528,-626.94895566,0.00012919,2]
[327525265,1716156632538,-206.51,0.00012953,2]
[327525266,1716156632548,-2181.36170084,0.00012998,2]
[327525267,1716156632557,-803.4540425,0.00012998,2]
[327525268,1716156632567,-466.66267694,0.00012998,2]
[327525269,1716156632578,-4447.09710716,0.00012998,2]
[327525270,1716156632588,-156.71208223,0.00012999,2]
[327525271,1716156632597,-270.83777248,0.00012999,2]
[327525272,1716156632606,-709.75087905,0.00012999,2]
[327525273,1716156632616,-2404.2423679,0.00012999,2]
[327525274,1716156632628,-943.43098885,0.00012999,2]
[327525275,1716156632637,-12415.68395906,0.00012999,2]
[327525276,1716156632646,-1151.96077803,0.00012999,3]
[327525277,1716156632656,-3694.409,0.00013,2]
[327525278,1716156632665,-3071.88029906,0.00013,2]
[327525287,1716156638140,-437.86991005,0.00012524,2]
[327525288,1716156638152,-1629.68005117,0.00012524,2]
[327525289,1716156638231,-932.45003878,0.00012524,2]
[327525290,1716156638239,-35034.53802964,0.00013,2]
[327525291,1716156638311,-2507.95342,0.00013,2]
[327525292,1716156638400,-2199.76057497,0.00013,2]
[327525296,1716156640556,-1660.30885076,0.00013,2]
[327525297,1716156640568,-1705.52096483,0.00013,2]
[327525298,1716156640626,-14653852.5927618,0.00013,2]
[327525299,1716156640721,-331.63639484,0.00013,2]
[327525316,1716156643300,-7154.4311,0.000128,2]
[327525317,1716156643310,-7884.39759746,0.00013,2]
[327525318,1716156643382,-9643.570866,0.00013,2]
[327525319,1716156643393,-29146.19729511,0.00013,2]
[327525320,1716156643597,-1568.7,0.00013,2]
[327525321,1716156643608,-3300.65,0.00013,2]
[327525323,1716156648319,-4434.0403181,0.00013,2]
[327525324,1716156648332,-1814.72371998,0.00013,2]
[327525325,1716156668062,700.0,0.000122,4]
[327525326,1716156670178,1400.0,0.000123,4]
[327525327,1716156672269,2100.0,0.000124,4]
[327525328,1716156674358,2800.0,0.000125,4]
[327525329,1716156858092,150.0,0.0001236,2]
[327525330,1716156877980,360.0,0.0001236,2]
[327525331,1716156932399,165.13,0.0003,120]
[327525332,1716156966497,2543.95918335,0.00012422,2]
[327525333,1716157030529,588.83,0.00010436,2]
[327525334,1716157041867,1551.79,0.00024329,30]
[327525335,1716157053473,151.6,0.00012301,2]
[327525336,1716157070094,234.69981702,0.00012422,2]
[327525337,1716157083203,293.42,0.00012309,2]
[327525338,1716157090682,699.17,0.00012259,2]
[327525339,1716157217414,531.38,0.00012172,2]
[327525340,1716157234325,2000.0,0.00012172,3]
[327525341,1716157327158,712.0,0.00012172,2]
[327525342,1716157354466,250.0,0.00012171,2]
[327525343,1716157379557,277.63,0.00012212,2]
[327525344,1716157394286,1356.52,0.0001231,2]
[327525345,1716157483637,559.38,0.00010294,2]
[327525346,1716157535871,1422.47,0.00024329,30]
[327525347,1716157571340,465.78,0.0001226,2]
[327525348,1716157649390,300.0,0.000122,4]
[327525349,1716157651481,700.0,0.000123,4]
[327525350,1716157653593,1000.0,0.000124,4]
[327525351,1716157655685,1400.0,0.000125,4]
[327525352,1716157699900,2000.0,0.00012141,3]
[327525353,1716157751894,644.69617691,0.00012455,2]
[327525354,1716157785408,430.4,0.00012095,2]
[327525355,1716157801499,548.73487624,0.00012455,2]
[327525361,1716157834657,-573.17047321,0.00012555,7]
[327525362,1716157834666,-550.41661248,0.00012556,2]
[327525363,1716157834675,-559.38,0.00012558,2]
[327525364,1716157834684,-279.73708427,0.000126,4]
[327525365,1716157834695,-450.037073,0.000126,4]
[327525366,1716157834707,-970.22584273,0.000126,4]
[327525367,1716157834717,-155.42,0.00012602,2]
[327525368,1716157834726,-300.0,0.000127,4]
[327525369,1716157834736,-2603.99957143,0.0001274,2]
[327525370,1716157834745,-150.0,0.00012799,2]
[327525371,1716157834755,-551.1046,0.000128,2]
[327525375,1716157834854,-9999.99,0.000128,2]
[327525376,1716157834867,-300.0,0.000128,4]
[327525377,1716157834877,-150.99,0.000128,2]
[327525378,1716157834886,-9999.99,0.000128,2]
[327525379,1716157834898,-480.28,0.000128,2]
[327525380,1716157834907,-1562.04182776,0.00012868,2]
[327525381,1716157834917,-283.0,0.00012869,2]
[327525382,1716157834927,-7508.55,0.00012869,2]
[327525383,1716157834936,-499.99,0.0001287,2]
[327525384,1716157834945,-200.0,0.00012896,2]
[327525385,1716157834955,-1000.0,0.00012896,2]
[327525386,1716157834964,-500.0,0.00012896,2]
[327525387,1716157834974,-19489.6095699,0.00012898,2]
[327525388,1716157834984,-378.83157048,0.00012898,2]
[327525389,1716157834993,-628.55191295,0.00012898,2]
[327525390,1716157835003,-3155.64673204,0.00012899,2]
[327525391,1716157835012,-940.31882329,0.00012899,2]
[327525392,1716157835022,-10000.0,0.000129,2]
[327525393,1716157835031,-171952.6798,0.000129,2]
[327525394,1716157835041,-6265.7317,0.000129,2]
[327525395,1716157835050,-7500.0,0.000129,2]
[327525396,1716157835060,-300.0,0.000129,4]
[327525397,1716157835069,-151.33788255,0.000129,2]
[327525398,1716157835078,-3000.0,0.000129,2]
[327525399,1716157835088,-153.19217043,0.000129,2]
[327525400,1716157835097,-3000.0,0.0001297,2]
[327525401,1716157835106,-803.4540425,0.00012998,2]
[327525402,1716157835116,-1244.37214617,0.00012998,2]
[327525403,1716157835125,-320.26345541,0.00012998,2]
[327525404,1716157835138,-155.0,0.00012998,2]
[327525405,1716157835151,-409.44014041,0.00012998,2]
[327525406,1716157835160,-2325.27290029,0.00012998,2]
[327525407,1716157835170,-264.30193279,0.00012998,2]
[327525408,1716157835181,-748.08854972,0.00012999,2]
[327525409,1716157835191,-1151.96077803,0.00012999,3]
[327525410,1716157835200,-1151.96077803,0.00012999,3]
[327525411,1716157835209,-91851.76139936,0.00013,2]
[327525412,1716157835223,-888.36762147,0.00013,2]
[327525413,1716157835235,-400.0,0.00013,2]
[327525414,1716157835246,-335.55356,0.00013,2]
[327525415,1716157835257,-14667.3867343,0.00013,2]
[327525416,1716157835268,-23385.69203154,0.00013,2]
[327525417,1716157835279,-24202.18642409,0.00013,2]
[327525418,1716157835291,-10637.29583004,0.00013,2]
[327525419,1716157835317,-398.115,0.00013,2]
[327525425,1716157838642,-539.84238113,0.00013,2]
[327525426,1716157838654,-19049.37181359,0.00013,2]
[327525427,1716157838676,-664.48,0.00013,2]
[327525428,1716157838689,-6158.39999996,0.00013,2]
[327525433,1716157840809,-3003.39578334,0.00013,2]
[327525434,1716157840821,-2658.28,0.00013,2]
[327525435,1716157841073,-1842.93119672,0.00013,2]
[327525436,1716157841084,-6171.59745408,0.00013,2]
[327525437,1716157841095,-1328.59,0.00013,2]
[327525438,1716157841106,-513.24499999,0.00013,2]
[327525439,1716157841117,-691.31999944,0.00013,2]
[327525448,1716157844672,-5318.51798058,0.00013,2]
[327525449,1716157844683,-145526.11828091,0.00013,2]
[327525450,1716157844708,-6539.29791479,0.00013,2]
[327525456,1716157846423,-1201.95735988,0.00013,2]
[327525457,1716157846883,-1100.8999995,0.00013,2]
[327525460,1716157875890,800.0,0.000122,4]
[327525461,1716157877980,1700.0,0.000123,4]
[327525462,1716157880067,2600.0,0.000124,4]
[327525463,1716157882198,3400.0,0.000125,4]
[327525464,1716157985161,511.33,0.0001099,2]
[327525465,1716158031324,171.06171806,0.000125,2]
[327525466,1716158043387,-4000.0,0.000126,4]
[327525467,1716158058146,1639.71796336,0.000125,2]
[327525468,1716158073088,1878.06,0.00024329,30]
[327525469,1716158144897,581.14995016,0.00012436,2]
[327525470,1716158169030,312.952909,0.00012472,2]
[327525471,1716158184116,448.0,0.0003,120]
[327525472,1716158220620,1852.42,0.00012357,2]
[327525473,1716158316249,655.68,0.00012396,2]
[327525474,1716158344133,250.0,0.00012392,2]
[327525475,1716158376123,250.0,0.00012428,2]
[327525476,1716158394079,155.42,0.00012401,2]
[327525477,1716158558998,158.21,0.00012252,2]
[327525478,1716158559229,158.21,0.0001226,2]
[327525479,1716158559437,158.21,0.00012269,2]
[327525480,1716158559676,158.21,0.00012278,2]
[327525481,1716158559874,158.21,0.00012287,2]
[327525482,1716158560091,158.21,0.00012295,2]
[327525483,1716158560333,158.21,0.00012304,2]
[327525484,1716158560552,158.21,0.00012313,2]
[327525485,1716158639260,588.07,0.00010318,2]
[327525486,1716158664845,1721.55,0.00024329,30]
[327525487,1716158775804,558.4,0.00012366,2]
[327525488,1716158830072,200.0,0.00012,4]
[327525489,1716158832166,500.0,0.000121,4]
[327525490,1716158834645,800.0,0.000122,4]
[327525491,1716158836417,1100.0,0.000123,4]
[327525492,1716158838472,1400.0,0.000124,4]
[327525493,1716158840569,200.0,0.000125,4]
[327525494,1716158882977,475.45,0.0001216,2]
[327525495,1716158920683,250.0,0.00012159,2]
[327525506,1716159021377,163.99,0.00012289,2]
[327525513,1716159031656,-163.99,0.00012502,2]
[327525514,1716159031665,-1000.0,0.00012523,2]
[327525515,1716159031675,-588.07,0.00012582,2]
[327525516,1716159031689,-156.91930362,0.000126,4]
[327525517,1716159031782,-43.08069638,0.000126,4]
[327525518,1716159031791,-200.0,0.000127,4]
[327525519,1716159031800,-163.99,0.00012716,2]
[327525520,1716159031810,-150.0,0.00012767,2]
[327525521,1716159031820,-880.67590048,0.00012777,2]
[327525522,1716159031879,-2415.50679587,0.00012777,2]
[327525528,1716159038261,-1100.0,0.00012777,2]
[327525529,1716159038368,-5640.52606362,0.00012777,2]
[327525530,1716159038385,-1009.52984862,0.00012777,2]
[327525531,1716159038397,-327.9420034,0.00012777,2]
[327525532,1716159038409,-5000.0,0.00012777,2]
[327525533,1716159038438,-13359.23292566,0.00012777,2]
[327525534,1716159038449,-5080.45712169,0.00012777,2]
[327525535,1716159038462,-17327.97442883,0.00012777,2]
[327525558,1716159042886,-972.726986,0.00012777,2]
[327525560,1716159042898,-714.3619255,0.00012777,2]
[327525562,1716159042909,-1176.17764742,0.00012777,2]
[327525563,1716159042921,-5741.88835291,0.00012777,2]
[327525564,1716159042930,-200.0,0.000128,4]
[327525565,1716159042940,-226.30976527,0.00012869,2]
[327525566,1716159042949,-999.99,0.00012869,2]
[327525567,1716159042958,-3000.0,0.0001287,2]
[327525568,1716159042967,-200.0,0.00012896,2]
[327525569,1716159042977,-1000.0,0.00012896,2]
[327525570,1716159042986,-500.0,0.00012896,2]
[327525571,1716159042996,-549.5617,0.000129,2]
[327525572,1716159043006,-167.06878453,0.000129,2]
[327525573,1716159043015,-1100.0,0.000129,4]
[327525574,1716159043025,-908.02729524,0.000129,2]
[327525575,1716159043035,-6465.91533655,0.000129,2]
[327525576,1716159043045,-1931.85025187,0.000129,2]
[327525577,1716159043054,-163.99,0.00012929,2]
[327525578,1716159043063,-34977.09682433,0.0001298,2]
[327525579,1716159043085,-459.43241844,0.0001298,2]
[327525580,1716159043096,-461.48875443,0.0001298,2]
[327525581,1716159043107,-428.87500012,0.0001298,2]